[Event "TUR-chT Superleague 2018"]
[Site "Ankara"]
[Date "2018.08.03"]
[Round "10"]
[White "Gunduz, Umut Erdem"]
[Black "Can, Isik"]
[Result "1/2-1/2"]
[ECO "B19"]
[WhiteElo "2174"]
[BlackElo "2377"]
[Annotator "NA"]
[PlyCount "53"]
[EventDate "2018.07.25"]
[EventType "team-tourn"]
[EventCountry "TUR"]
[SourceTitle "playchess.com"]
[Source "ChessBase"]
[SourceQuality "1"]
[TimeControl "40/5400+30:1800+30"]

1. e4 {[%emt 0:00:30]} c6 {[%emt 0:00:30]} 2. d4 {[%emt 0:00:30]} d5 {[%emt 0:00:00]} 3. Nd2 {[%emt 0:00:00]} dxe4 {[%emt 0:00:00]} 4. Nxe4 {[%emt 0:00:00]} Bf5 {[%emt 0:00:30]} 5. Ng3 {[%emt 0:00:30]} Bg6 {[%emt 0:00:30]} 6. h4 {[%emt 0:00:30]} h6 {[%emt 0:00:00]} 7. Nf3 {[%emt 0:00:00]} Nd7 {[%emt 0:00:00]} 8. h5 {[%emt 0:00:00]} Bh7 {[%emt 0:00:00]} 9. Bd3 {[%emt 0:00:00]} Bxd3 {[%emt 0:00:00]} 10. Qxd3 {[%emt 0:00:00]} e6 {[%emt 0:00:30]} 11. Bd2 {[%emt 0:00:30]} Ngf6 {[%emt 0:00:00]} 12. O-O-O {[%emt 0:00:00]} Be7 {[%emt 0:00:00]} 13. Qe2 {[%emt 0:00:00]} O-O {[%emt 0:00:00]} 14. Nf1 {[%emt 0:00:00]} c5 {[%emt 0:00:00]} 15. g4 {[%emt 0:00:00]} cxd4 {[%emt 0:00:00]} 16. g5 {[%emt 0:00:00]} Nd5 {[%emt 0:00:00]} 17. gxh6 {[%emt 0:00:00]} Qb6 {[%emt 0:00:00]} 18. Rg1 {[%emt 0:00:00]} Ba3 {[%emt 0:02:00]} 19. Rxg7+ {[%emt 0:00:00]} Kh8 {[%emt 0:00:30]} 20. bxa3 {[%emt 0:00:00]} Nc3 {[%emt 0:00:00]} 21. Bxc3 {[%emt 0:00:00]} dxc3 {[%emt 0:00:00]} 22. Rh7+ {[%emt 0:00:30]} Kg8 {[%emt 0:00:30]} 23. Rg7+ {[%emt 0:00:00]} Kh8 {[%emt 0:00:00]} 24. Rh7+ {[%emt 0:00:00]} Kg8 {[%emt 0:00:00]} 25. Rg7+ {[%emt 0:00:00]} Kh8 {[%emt 0:00:30]} 26. Rh7+ {[%emt 0:00:00]} Kg8 {[%emt 0:00:30]} 27. Rg7+ {[%emt 0:00:30]} 1/2-1/2

[Event "TUR-chT Superleague 2018"]
[Site "Ankara"]
[Date "2018.08.03"]
[Round "10"]
[White "Tarlabasi, Emirhan"]
[Black "Tasdogen, Dincer"]
[Result "1/2-1/2"]
[ECO "A41"]
[WhiteElo "2174"]
[BlackElo "2280"]
[Annotator "ChessBase"]
[PlyCount "127"]
[EventDate "2018.07.25"]
[EventType "team-tourn"]
[EventCountry "TUR"]
[SourceTitle "playchess.com"]
[Source "ChessBase"]
[SourceQuality "1"]
[TimeControl "40/5400+30:1800+30"]

1. d4 {[%emt 0:00:30]} d6 {[%emt 0:00:30]} 2. c4 {[%emt 0:00:30]} e5 {[%emt 0:00:30]} 3. e3 {[%emt 0:00:00]} Nd7 {[%emt 0:01:30]} 4. Nc3 {[%emt 0:00:00]} g6 {[%emt 0:00:30]} 5. Bd3 {[%emt 0:01:30]} Bg7 {[%emt 0:01:30]} 6. Nge2 {[%emt 0:00:30]} f5 {[%emt 0:08:30]} 7. h4 {[%emt 0:05:30]} Ngf6 {[%emt 0:13:30]} 8. f3 {[%emt 0:06:30]} O-O {[%emt 0:02:30]} 9. Qc2 {[%emt 0:05:30]} Qe7 {[%emt 0:05:30]} 10. Bd2 {[%emt 0:06:30]} Re8 {[%emt 0:12:30]} 11. Qb3 {[%emt 0:05:30]} Nb6 {[%emt 0:03:30]} 12. O-O-O {[%emt 0:07:30]} Be6 {[%emt 0:00:30]} 13. d5 {[%emt 0:03:30]} Bf7 {[%emt 0:07:30]} 14. e4 {[%emt 0:01:30]} c6 {[%emt 0:02:30]} 15. Kb1 {[%emt 0:03:30]} Nfd7 {[%emt 0:04:30]} 16. Be3 {[%emt 0:05:30]} fxe4 {[%emt 0:07:30]} 17. Bxe4 {[%emt 0:05:30]} Rac8 {[%emt 0:00:30]} 18. h5 {[%emt 0:05:30]} cxd5 {[%emt 0:03:30]} 19. cxd5 {[%emt 0:04:30]} Nc5 {[%emt 0:05:03]} 20. Bxc5 {[%emt 0:02:30]} Rxc5 {[%emt 0:00:02]} 21. hxg6 {[%emt 0:02:30]} hxg6 {[%emt 0:00:17]} 22. Na4 {[%emt 0:06:30]} Nxa4 {[%emt 0:04:24]} 23. Qxa4 {[%emt 0:00:30]} a6 {[%emt 0:02:05]} 24. Qb3 {[%emt 0:02:02]} Rec8 {[%emt 0:03:30]} 25. Qe3 {[%emt 0:04:32]} Be8 {[%emt 0:05:02]} 26. Rh3 {[%emt 0:05:56]} b5 {[%emt 0:03:31]} 27. Rg3 {[%emt 0:03:17]} Qf6 {[%emt 0:00:01]} 28. Nc1 {[%emt 0:02:58]} b4 {[%emt 0:01:55]} 29. Nb3 {[%emt 0:00:49]} Rb5 {[%emt 0:01:06]} 30. Qd3 {[%emt 0:00:41]} g5 {[%emt 0:00:24]} 31. Qe3 {[%emt 0:03:08]} Qf4 {[%emt 0:00:37]} 32. Qxf4 {[%emt 0:00:43]} gxf4 {[%emt 0:00:01]} 33. Rg4 {[%emt 0:00:04]} Bf7 {[%emt 0:00:53]} 34. g3 {[%emt 0:00:47]} fxg3 {[%emt 0:00:22]} 35. Rxg3 {[%emt 0:00:17]} Kf8 {[%emt 0:00:23]} 36. Rg2 {[%emt 0:00:41]} a5 {[%emt 0:00:29]} 37. Rc2 {[%emt 0:00:58]} Rxc2 {[%emt 0:00:30]} 38. Kxc2 {[%emt 0:00:30]} a4 {[%emt 0:00:00]} 39. Nc1 {[%emt 0:00:00]} Rc5+ {[%emt 0:01:03]} 40. Kb1 {[%emt 0:00:25]} Bh6 {[%emt 0:00:00]} 41. Ne2 {[%emt 0:04:12]} a3 {[%emt 0:03:52]} 42. Ng3 {[%emt 0:05:30]} Bg5 {[%emt 0:07:30]} 43. Nf5 {[%emt 0:03:14]} Be7 {[%emt 0:01:30]} 44. b3 {[%emt 0:04:02]} Rc3 {[%emt 0:02:49]} 45. Rc1 {[%emt 0:05:05]} Rxc1+ {[%emt 0:03:17]} 46. Kxc1 {[%emt 0:00:30]} Bg6 {[%emt 0:00:01]} 47. Ng3 {[%emt 0:04:07]} Bh4 {[%emt 0:00:01]} 48. Nf1 {[%emt 0:04:59]} Be8 {[%emt 0:02:04]} 49. Kd1 {[%emt 0:01:46]} Ke7 {[%emt 0:02:33]} 50. Ne3 {[%emt 0:00:55]} Bf2 {[%emt 0:00:46]} 51. Nc2 {[%emt 0:00:48]} Bc5 {[%emt 0:00:04]} 52. Kd2 {[%emt 0:00:32]} Kd8 {[%emt 0:01:38]} 53. Ne1 {[%emt 0:00:43]} Kc7 {[%emt 0:00:50]} 54. Ng2 {[%emt 0:00:32]} Kb6 {[%emt 0:01:11]} 55. f4 {[%emt 0:00:39]} exf4 {[%emt 0:02:06]} 56. Nxf4 {[%emt 0:00:02]} Bd4 {[%emt 0:00:42]} 57. Ne6 {[%emt 0:00:52]} Be5 {[%emt 0:01:38]} 58. Kd3 {[%emt 0:00:40]} Bb5+ {[%emt 0:04:04]} 59. Ke3 {[%emt 0:00:46]} Be8 {[%emt 0:00:14]} 60. Nd8 {[%emt 0:00:12]} Kc7 {[%emt 0:01:28]} 61. Ne6+ {[%emt 0:00:34]} Kb6 {[%emt 0:00:04]} 62. Kd3 {[%emt 0:00:19]} Bb5+ {[%emt 0:00:04]} 63. Ke3 {[%emt 0:00:41]} Be8 {[%emt 0:00:05]} 64. Kd3 {[%emt 0:00:24]} 1/2-1/2

[Event "TUR-chT Superleague 2018"]
[Site "Ankara"]
[Date "2018.08.03"]
[Round "10"]
[White "Unat, Can Haktan"]
[Black "Ozcan, Kaan"]
[Result "1-0"]
[ECO "D00"]
[WhiteElo "2159"]
[BlackElo "1523"]
[Annotator "NA"]
[PlyCount "81"]
[EventDate "2018.07.25"]
[EventType "team-tourn"]
[EventCountry "TUR"]
[SourceTitle "playchess.com"]
[Source "ChessBase"]
[SourceQuality "1"]
[TimeControl "40/5400+30:1800+30"]

1. d4 {[%emt 0:00:30]} Nf6 {[%emt 0:00:30]} 2. Nc3 {[%emt 0:00:00]} d5 {[%emt 0:00:30]} 3. Bf4 {[%emt 0:00:00]} Bf5 {[%emt 0:03:30]} 4. e3 {[%emt 0:00:00]} e6 {[%emt 0:00:30]} 5. Nge2 {[%emt 0:04:00]} Be7 {[%emt 0:10:30]} 6. Ng3 {[%emt 0:07:30]} Bg6 {[%emt 0:02:30]} 7. f3 {[%emt 0:00:30]} a6 {[%emt 0:09:30]} 8. Bd3 {[%emt 0:02:30]} c5 {[%emt 0:07:30]} 9. Nce2 {[%emt 0:13:30]} Nc6 {[%emt 0:07:30]} 10. c3 {[%emt 0:00:30]} cxd4 {[%emt 0:05:30]} 11. cxd4 {[%emt 0:00:30]} Rc8 {[%emt 0:07:30]} 12. Bxg6 {[%emt 0:01:30]} hxg6 {[%emt 0:00:30]} 13. O-O {[%emt 0:00:30]} Nh5 {[%emt 0:10:30]} 14. Nxh5 {[%emt 0:01:30]} gxh5 {[%emt 0:00:00]} 15. Bg3 {[%emt 0:05:30]} Bd6 {[%emt 0:05:00]} 16. Qb3 {[%emt 0:04:30]} Bxg3 {[%emt 0:02:30]} 17. Nxg3 {[%emt 0:00:30]} Qd7 {[%emt 0:00:30]} 18. Rae1 {[%emt 0:01:30]} g6 {[%emt 0:04:30]} 19. Ne2 {[%emt 0:01:30]} O-O {[%emt 0:02:43]} 20. Nf4 {[%emt 0:00:30]} Rc7 {[%emt 0:06:40]} 21. Nd3 {[%emt 0:01:30]} Na5 {[%emt 0:06:53]} 22. Qd1 {[%emt 0:00:30]} b6 {[%emt 0:01:30]} 23. b3 {[%emt 0:00:30]} Rfc8 {[%emt 0:02:24]} 24. Rf2 {[%emt 0:00:30]} Qe7 {[%emt 0:01:22]} 25. e4 {[%emt 0:00:30]} dxe4 {[%emt 0:00:39]} 26. fxe4 {[%emt 0:00:00]} Qd6 {[%emt 0:00:29]} 27. Nf4 {[%emt 0:00:00]} Rd7 {[%emt 0:01:05]} 28. d5 {[%emt 0:00:30]} exd5 {[%emt 0:00:26]} 29. Nxd5 {[%emt 0:00:30]} Kg7 {[%emt 0:00:53]} 30. Qd4+ {[%emt 0:00:00]} Kh6 {[%emt 0:00:12]} 31. Qe3+ {[%emt 0:00:00]} Kg7 {[%emt 0:00:06]} 32. Nxb6 {[%emt 0:00:30]} Rc6 {[%emt 0:00:59]} 33. Nxd7 {[%emt 0:00:30]} Qxd7 {[%emt 0:00:05]} 34. Ref1 {[%emt 0:00:30]} f6 {[%emt 0:00:40]} 35. e5 {[%emt 0:00:30]} f5 {[%emt 0:00:45]} 36. Rd2 {[%emt 0:00:00]} Qe6 {[%emt 0:00:26]} 37. Rfd1 {[%emt 0:00:00]} Rc7 {[%emt 0:00:36]} 38. Rd6 {[%emt 0:00:30]} Qe8 {[%emt 0:00:30]} 39. e6 {[%emt 0:00:30]} Nb7 {[%emt 0:00:32]} 40. Rd7+ {[%emt 0:00:30]} Rxd7 {[%emt 0:00:00]} 41. Rxd7+ {[%emt 0:00:30]} 1-0

[Event "TUR-chT Superleague 2018"]
[Site "Ankara"]
[Date "2018.08.03"]
[Round "10"]
[White "Ozbay, Ece"]
[Black "Balajayeva, Khanim"]
[Result "1/2-1/2"]
[ECO "C80"]
[WhiteElo "2140"]
[BlackElo "2332"]
[Annotator "NA"]
[PlyCount "60"]
[EventDate "2018.07.25"]
[EventType "team-tourn"]
[EventCountry "TUR"]
[SourceTitle "playchess.com"]
[Source "ChessBase"]
[SourceQuality "1"]
[TimeControl "40/5400+30:1800+30"]

1. e4 {[%emt 0:00:30]} e5 {[%emt 0:00:30]} 2. Nf3 {[%emt 0:00:30]} Nc6 {[%emt 0:00:00]} 3. Bb5 {[%emt 0:00:00]} a6 {[%emt 0:00:00]} 4. Ba4 {[%emt 0:00:00]} Nf6 {[%emt 0:00:30]} 5. O-O {[%emt 0:00:30]} Nxe4 {[%emt 0:00:00]} 6. Re1 {[%emt 0:01:30]} Nc5 {[%emt 0:00:00]} 7. Nc3 {[%emt 0:00:00]} Be7 {[%emt 0:05:30]} 8. Nxe5 {[%emt 0:06:00]} Nxe5 {[%emt 0:01:30]} 9. Rxe5 {[%emt 0:00:30]} O-O {[%emt 0:03:30]} 10. Bb3 {[%emt 0:07:30]} Nxb3 {[%emt 0:08:30]} 11. axb3 {[%emt 0:00:30]} Bf6 {[%emt 0:01:30]} 12. Re1 {[%emt 0:01:30]} d5 {[%emt 0:04:30]} 13. d4 {[%emt 0:00:30]} Bf5 {[%emt 0:07:30]} 14. Bf4 {[%emt 0:02:30]} c6 {[%emt 0:00:00]} 15. Na4 {[%emt 0:03:30]} Re8 {[%emt 0:08:00]} 16. Qd2 {[%emt 0:08:30]} a5 {[%emt 0:11:30]} 17. Qc3 {[%emt 0:07:30]} Be7 {[%emt 0:07:30]} 18. Qg3 {[%emt 0:00:30]} Bf8 {[%emt 0:12:30]} 19. Bc7 {[%emt 0:03:30]} Qd7 {[%emt 0:01:30]} 20. Nb6 {[%emt 0:01:30]} Rxe1+ {[%emt 0:00:00]} 21. Rxe1 {[%emt 0:00:30]} Re8 {[%emt 0:00:00]} 22. Re5 {[%emt 0:06:30]} Rxe5 {[%emt 0:00:30]} 23. Qxe5 {[%emt 0:00:30]} Qe6 {[%emt 0:02:30]} 24. Qxe6 {[%emt 0:00:30]} fxe6 {[%emt 0:01:30]} 25. c3 {[%emt 0:01:30]} Bc2 {[%emt 0:00:30]} 26. Nd7 {[%emt 0:01:30]} Bxb3 {[%emt 0:00:30]} 27. Nxf8 {[%emt 0:00:30]} Kxf8 {[%emt 0:00:00]} 28. Bxa5 {[%emt 0:00:30]} Kf7 {[%emt 0:00:00]} 29. Bc7 {[%emt 0:00:30]} Bc4 {[%emt 0:00:30]} 30. f3 {[%emt 0:00:30]} Kf6 {[%emt 0:00:30]} 1/2-1/2

[Event "TUR-chT Superleague 2018"]
[Site "Ankara"]
[Date "2018.08.03"]
[Round "10"]
[White "Sade, Defne"]
[Black "Sahin, Hayrun Nisa"]
[Result "1-0"]
[ECO "B52"]
[WhiteElo "1968"]
[BlackElo "1752"]
[Annotator "NA"]
[PlyCount "87"]
[EventDate "2018.07.25"]
[EventType "team-tourn"]
[EventCountry "TUR"]
[SourceTitle "playchess.com"]
[Source "ChessBase"]
[SourceQuality "1"]
[TimeControl "40/5400+30:1800+30"]

1. e4 {[%emt 0:00:30]} c5 {[%emt 0:00:30]} 2. Nf3 {[%emt 0:00:30]} d6 {[%emt 0:00:30]} 3. Bb5+ {[%emt 0:00:30]} Bd7 {[%emt 0:00:30]} 4. Bxd7+ {[%emt 0:00:30]} Qxd7 {[%emt 0:00:30]} 5. c4 {[%emt 0:00:00]} Nc6 {[%emt 0:00:00]} 6. d4 {[%emt 0:00:00]} cxd4 {[%emt 0:00:00]} 7. Nxd4 {[%emt 0:00:00]} g6 {[%emt 0:00:00]} 8. Nc3 {[%emt 0:00:00]} Bg7 {[%emt 0:00:00]} 9. Be3 {[%emt 0:00:00]} Nf6 {[%emt 0:00:00]} 10. f3 {[%emt 0:00:00]} O-O {[%emt 0:00:00]} 11. O-O {[%emt 0:00:00]} e6 {[%emt 0:05:30]} 12. Qd2 {[%emt 0:12:00]} d5 {[%emt 0:04:30]} 13. Nxc6 {[%emt 0:04:30]} bxc6 {[%emt 0:03:30]} 14. e5 {[%emt 0:00:30]} Ne8 {[%emt 0:04:30]} 15. Bc5 {[%emt 0:06:30]} Bxe5 {[%emt 0:00:00]} 16. Bxf8 {[%emt 0:00:30]} Kxf8 {[%emt 0:00:00]} 17. cxd5 {[%emt 0:00:30]} exd5 {[%emt 0:04:30]} 18. Rac1 {[%emt 0:08:30]} Nc7 {[%emt 0:00:30]} 19. f4 {[%emt 0:01:30]} Bg7 {[%emt 0:04:30]} 20. Na4 {[%emt 0:13:30]} Nb5 {[%emt 0:09:30]} 21. Kh1 {[%emt 0:03:30]} Kg8 {[%emt 0:12:30]} 22. Nc5 {[%emt 0:02:30]} Qd6 {[%emt 0:01:30]} 23. Nb3 {[%emt 0:07:30]} Rc8 {[%emt 0:03:30]} 24. a4 {[%emt 0:08:30]} Nc7 {[%emt 0:00:30]} 25. Nc5 {[%emt 0:09:30]} Ne6 {[%emt 0:04:30]} 26. Nxe6 {[%emt 0:04:04]} fxe6 {[%emt 0:01:30]} 27. b4 {[%emt 0:03:59]} Rb8 {[%emt 0:03:30]} 28. Rc5 {[%emt 0:03:40]} a5 {[%emt 0:08:30]} 29. Rfc1 {[%emt 0:04:34]} Rxb4 {[%emt 0:01:30]} 30. Rxc6 {[%emt 0:01:47]} Qxf4 {[%emt 0:00:30]} 31. Qxf4 {[%emt 0:01:34]} Rxf4 {[%emt 0:00:00]} 32. Rxe6 {[%emt 0:00:01]} Rxa4 {[%emt 0:01:00]} 33. Rd6 {[%emt 0:00:27]} Bb2 {[%emt 0:07:30]} 34. Rc8+ {[%emt 0:02:47]} Kg7 {[%emt 0:00:30]} 35. g3 {[%emt 0:00:27]} d4 {[%emt 0:06:54]} 36. Rc7+ {[%emt 0:01:14]} Kh6 {[%emt 0:00:15]} 37. h4 {[%emt 0:00:49]} Ra3 {[%emt 0:08:16]} 38. Kg2 {[%emt 0:01:11]} Bc3 {[%emt 0:00:17]} 39. Rdd7 {[%emt 0:00:15]} Kh5 {[%emt 0:01:24]} 40. Rd5+ {[%emt 0:00:43]} Kh6 {[%emt 0:00:00]} 41. Rdd7 {[%emt 0:04:28]} Kh5 {[%emt 0:01:24]} 42. Kh3 {[%emt 0:01:30]} Bd2 {[%emt 0:03:30]} 43. Rxh7+ {[%emt 0:00:30]} Bh6 {[%emt 0:00:00]} 44. Rc5+ {[%emt 0:00:00]} 1-0

[Event "TUR-chT Superleague 2018"]
[Site "Ankara"]
[Date "2018.08.03"]
[Round "10"]
[White "Kilic, Gokturk Kagan"]
[Black "Tuncer, Tuna"]
[Result "0-1"]
[ECO "B33"]
[WhiteElo "1921"]
[BlackElo "2328"]
[Annotator "NA"]
[PlyCount "50"]
[EventDate "2018.07.25"]
[EventType "team-tourn"]
[EventCountry "TUR"]
[SourceTitle "playchess.com"]
[Source "ChessBase"]
[SourceQuality "1"]
[TimeControl "40/5400+30:1800+30"]

1. e4 {[%emt 0:00:30]} c5 {[%emt 0:00:30]} 2. Nf3 {[%emt 0:00:30]} Nc6 {[%emt 0:00:30]} 3. d4 {[%emt 0:01:30]} cxd4 {[%emt 0:00:00]} 4. Nxd4 {[%emt 0:00:30]} Nf6 {[%emt 0:00:00]} 5. Nc3 {[%emt 0:01:30]} e5 {[%emt 0:00:30]} 6. Ndb5 {[%emt 0:06:30]} d6 {[%emt 0:00:30]} 7. Bg5 {[%emt 0:01:30]} a6 {[%emt 0:00:30]} 8. Na3 {[%emt 0:01:30]} Be6 {[%emt 0:00:30]} 9. Qd2 {[%emt 0:16:30]} Rc8 {[%emt 0:17:30]} 10. Be2 {[%emt 0:14:30]} Be7 {[%emt 0:03:30]} 11. O-O {[%emt 0:11:30]} b5 {[%emt 0:05:30]} 12. Bxf6 {[%emt 0:02:30]} Bxf6 {[%emt 0:00:30]} 13. Nd5 {[%emt 0:00:30]} Bg5 {[%emt 0:00:30]} 14. f4 {[%emt 0:05:30]} exf4 {[%emt 0:05:30]} 15. Nxf4 {[%emt 0:02:30]} O-O {[%emt 0:01:30]} 16. c3 {[%emt 0:01:30]} b4 {[%emt 0:13:30]} 17. Nb1 {[%emt 0:09:52]} a5 {[%emt 0:04:30]} 18. Kh1 {[%emt 0:02:25]} Bxf4 {[%emt 0:04:30]} 19. Qxf4 {[%emt 0:01:09]} Ne5 {[%emt 0:00:30]} 20. a3 {[%emt 0:01:16]} Qb6 {[%emt 0:01:30]} 21. axb4 {[%emt 0:01:40]} axb4 {[%emt 0:00:30]} 22. Ra6 {[%emt 0:08:41]} Qb8 {[%emt 0:01:30]} 23. cxb4 {[%emt 0:03:09]} Rc2 {[%emt 0:03:30]} 24. Nc3 {[%emt 0:01:59]} Qxb4 {[%emt 0:01:30]} 25. Qe3 {[%emt 0:01:18]} Qxb2 {[%emt 0:01:30]} 0-1

[Event "TUR-chT Superleague 2018"]
[Site "Ankara"]
[Date "2018.08.03"]
[Round "10"]
[White "Ayan, Bengu Sena"]
[Black "Celik, Eda"]
[Result "0-1"]
[ECO "A65"]
[WhiteElo "1894"]
[BlackElo "1976"]
[Annotator "NA"]
[PlyCount "78"]
[EventDate "2018.07.25"]
[EventType "team-tourn"]
[EventCountry "TUR"]
[SourceTitle "playchess.com"]
[Source "ChessBase"]
[SourceQuality "1"]
[TimeControl "40/5400+30:1800+30"]

1. d4 {[%emt 0:00:30]} Nf6 {[%emt 0:00:30]} 2. c4 {[%emt 0:00:30]} c5 {[%emt 0:00:30]} 3. d5 {[%emt 0:00:30]} e6 {[%emt 0:00:30]} 4. Nc3 {[%emt 0:00:00]} exd5 {[%emt 0:00:00]} 5. cxd5 {[%emt 0:00:00]} d6 {[%emt 0:00:00]} 6. e4 {[%emt 0:00:00]} g6 {[%emt 0:00:00]} 7. f3 {[%emt 0:00:00]} Bg7 {[%emt 0:03:00]} 8. Nge2 {[%emt 0:00:00]} O-O {[%emt 0:01:30]} 9. Ng3 {[%emt 0:00:00]} a6 {[%emt 0:07:30]} 10. a4 {[%emt 0:00:00]} Ne8 {[%emt 0:06:30]} 11. Be3 {[%emt 0:05:00]} h5 {[%emt 0:05:30]} 12. Bd3 {[%emt 0:13:30]} h4 {[%emt 0:14:30]} 13. Nge2 {[%emt 0:00:30]} Nd7 {[%emt 0:01:30]} 14. Nf4 {[%emt 0:08:30]} Ne5 {[%emt 0:03:30]} 15. Be2 {[%emt 0:02:30]} f5 {[%emt 0:08:30]} 16. Qd2 {[%emt 0:16:30]} Nf6 {[%emt 0:06:30]} 17. exf5 {[%emt 0:07:30]} Bxf5 {[%emt 0:00:30]} 18. Ne6 {[%emt 0:10:30]} Bxe6 {[%emt 0:00:30]} 19. dxe6 {[%emt 0:00:30]} Re8 {[%emt 0:18:30]} 20. O-O {[%emt 0:06:30]} Qe7 {[%emt 0:12:40]} 21. Bh6 {[%emt 0:08:15]} Qxe6 {[%emt 0:01:33]} 22. Qg5 {[%emt 0:03:15]} Nf7 {[%emt 0:01:27]} 23. Qxg6 {[%emt 0:04:56]} Nxh6 {[%emt 0:00:06]} 24. Rae1 {[%emt 0:02:29]} Qe3+ {[%emt 0:01:06]} 25. Kh1 {[%emt 0:00:11]} Kh8 {[%emt 0:02:02]} 26. g4 {[%emt 0:02:12]} hxg3 {[%emt 0:03:53]} 27. hxg3 {[%emt 0:00:40]} Qd2 {[%emt 0:00:24]} 28. Kg2 {[%emt 0:03:20]} Qxb2 {[%emt 0:00:24]} 29. g4 {[%emt 0:01:50]} Qxc3 {[%emt 0:00:44]} 30. g5 {[%emt 0:00:01]} Nd5 {[%emt 0:00:23]} 31. Kh1 {[%emt 0:01:03]} Nf4 {[%emt 0:00:35]} 32. Qxd6 {[%emt 0:00:40]} Nxe2 {[%emt 0:00:32]} 33. gxh6 {[%emt 0:01:48]} Be5 {[%emt 0:00:13]} 34. Qd7 {[%emt 0:00:50]} Ng3+ {[%emt 0:00:17]} 35. Kg2 {[%emt 0:00:06]} Nxf1 {[%emt 0:00:45]} 36. Rxf1 {[%emt 0:00:26]} Rg8+ {[%emt 0:00:30]} 37. Kh3 {[%emt 0:00:49]} Rg3+ {[%emt 0:00:54]} 38. Kh4 {[%emt 0:00:06]} Qc4+ {[%emt 0:00:01]} 39. f4 {[%emt 0:00:42]} Qxf1 {[%emt 0:00:39]} 0-1

[Event "TUR-chT Superleague 2018"]
[Site "Ankara"]
[Date "2018.08.03"]
[Round "10"]
[White "Ozoglu, Berker"]
[Black "Zeydan, Salih"]
[Result "1/2-1/2"]
[ECO "B23"]
[WhiteElo "1843"]
[BlackElo "2061"]
[Annotator "NA"]
[PlyCount "90"]
[EventDate "2018.07.25"]
[EventType "team-tourn"]
[EventCountry "TUR"]
[SourceTitle "playchess.com"]
[Source "ChessBase"]
[SourceQuality "1"]
[TimeControl "40/5400+30:1800+30"]

1. e4 {[%emt 0:00:30]} c5 {[%emt 0:00:30]} 2. Nc3 {[%emt 0:00:00]} e6 {[%emt 0:00:30]} 3. g3 {[%emt 0:04:00]} d5 {[%emt 0:00:30]} 4. exd5 {[%emt 0:00:30]} exd5 {[%emt 0:00:30]} 5. Bg2 {[%emt 0:00:30]} Nf6 {[%emt 0:01:30]} 6. Nge2 {[%emt 0:01:30]} d4 {[%emt 0:00:30]} 7. Ne4 {[%emt 0:05:30]} Be7 {[%emt 0:01:30]} 8. d3 {[%emt 0:00:30]} O-O {[%emt 0:00:30]} 9. O-O {[%emt 0:00:00]} Nc6 {[%emt 0:18:30]} 10. h3 {[%emt 0:00:00]} Nd5 {[%emt 0:02:30]} 11. f4 {[%emt 0:02:30]} f5 {[%emt 0:06:30]} 12. Nf2 {[%emt 0:00:30]} Ne3 {[%emt 0:01:30]} 13. Bxe3 {[%emt 0:00:30]} dxe3 {[%emt 0:00:30]} 14. Nh1 {[%emt 0:00:30]} Bf6 {[%emt 0:01:30]} 15. c3 {[%emt 0:00:30]} Kh8 {[%emt 0:04:30]} 16. Bf3 {[%emt 0:00:30]} Re8 {[%emt 0:04:30]} 17. g4 {[%emt 0:01:30]} Bh4 {[%emt 0:09:30]} 18. Nhg3 {[%emt 0:07:30]} g6 {[%emt 0:04:30]} 19. Kh2 {[%emt 0:05:30]} Be6 {[%emt 0:05:30]} 20. d4 {[%emt 0:07:30]} cxd4 {[%emt 0:03:30]} 21. Nxd4 {[%emt 0:00:30]} Nxd4 {[%emt 0:03:30]} 22. Qxd4+ {[%emt 0:00:30]} Qxd4 {[%emt 0:07:30]} 23. cxd4 {[%emt 0:01:30]} Rad8 {[%emt 0:01:30]} 24. Rfd1 {[%emt 0:07:30]} Bd5 {[%emt 0:01:35]} 25. Bxd5 {[%emt 0:07:30]} Bxg3+ {[%emt 0:01:13]} 26. Kxg3 {[%emt 0:00:30]} e2 {[%emt 0:00:07]} 27. Re1 {[%emt 0:04:30]} Rxd5 {[%emt 0:00:15]} 28. gxf5 {[%emt 0:00:00]} gxf5 {[%emt 0:02:35]} 29. Rac1 {[%emt 0:00:00]} Rxd4 {[%emt 0:00:11]} 30. Rc7 {[%emt 0:01:30]} Rd3+ {[%emt 0:06:59]} 31. Kg2 {[%emt 0:02:30]} Rg8+ {[%emt 0:02:57]} 32. Kf2 {[%emt 0:06:30]} Rxh3 {[%emt 0:01:30]} 33. Rxb7 {[%emt 0:00:30]} Rh2+ {[%emt 0:04:18]} 34. Kf3 {[%emt 0:01:30]} Rd8 {[%emt 0:00:07]} 35. Kg3 {[%emt 0:00:30]} Rd1 {[%emt 0:01:18]} 36. Kxh2 {[%emt 0:00:30]} Rxe1 {[%emt 0:00:30]} 37. Re7 {[%emt 0:00:30]} Rf1 {[%emt 0:02:49]} 38. Rxe2 {[%emt 0:00:30]} Rxf4 {[%emt 0:00:02]} 39. Kg3 {[%emt 0:00:00]} Ra4 {[%emt 0:00:51]} 40. b3 {[%emt 0:00:00]} Ra5 {[%emt 0:00:00]} 41. Kf4 {[%emt 0:03:30]} Kg7 {[%emt 0:05:43]} 42. b4 {[%emt 0:00:30]} Rd5 {[%emt 0:06:49]} 43. Re5 {[%emt 0:05:30]} Rd4+ {[%emt 0:18:03]} 44. Kxf5 {[%emt 0:00:30]} Rxb4 {[%emt 0:00:15]} 45. Re7+ {[%emt 0:00:00]} Kh6 {[%emt 0:00:24]} 1/2-1/2

[Event "TUR-chT Superleague 2018"]
[Site "Ankara"]
[Date "2018.08.03"]
[Round "10"]
[White "Basgonul, Bekir Serkan"]
[Black "Solak, Dragan"]
[Result "0-1"]
[ECO "E68"]
[WhiteElo "1842"]
[BlackElo "2603"]
[Annotator "ChessBase"]
[PlyCount "70"]
[EventDate "2018.07.25"]
[EventType "team-tourn"]
[EventCountry "TUR"]
[SourceTitle "playchess.com"]
[Source "ChessBase"]
[SourceQuality "1"]
[TimeControl "40/5400+30:1800+30"]

1. d4 {[%emt 0:00:30]} d6 {[%emt 0:00:30]} 2. Nf3 {[%emt 0:01:30]} g6 {[%emt 0:00:30]} 3. g3 {[%emt 0:00:00]} Bg7 {[%emt 0:00:00]} 4. Bg2 {[%emt 0:00:00]} Nf6 {[%emt 0:00:00]} 5. O-O {[%emt 0:00:30]} O-O {[%emt 0:00:30]} 6. c4 {[%emt 0:00:30]} Nbd7 {[%emt 0:00:00]} 7. Nc3 {[%emt 0:01:30]} e5 {[%emt 0:00:00]} 8. e4 {[%emt 0:01:30]} exd4 {[%emt 0:01:30]} 9. Nxd4 {[%emt 0:09:30]} a6 {[%emt 0:00:30]} 10. Re1 {[%emt 0:06:30]} Rb8 {[%emt 0:00:00]} 11. Rb1 {[%emt 0:20:30]} Ne5 {[%emt 0:08:00]} 12. b3 {[%emt 0:06:30]} c5 {[%emt 0:00:00]} 13. Nc2 {[%emt 0:05:30]} b5 {[%emt 0:08:00]} 14. cxb5 {[%emt 0:07:30]} axb5 {[%emt 0:00:30]} 15. h3 {[%emt 0:06:30]} b4 {[%emt 0:03:30]} 16. f4 {[%emt 0:06:30]} Ned7 {[%emt 0:24:30]} 17. Na4 {[%emt 0:03:30]} Nb6 {[%emt 0:07:30]} 18. Nxb6 {[%emt 0:04:30]} Rxb6 {[%emt 0:00:30]} 19. Ne3 {[%emt 0:05:04]} Ra6 {[%emt 0:02:30]} 20. Nc4 {[%emt 0:05:08]} Be6 {[%emt 0:01:30]} 21. e5 {[%emt 0:01:34]} dxe5 {[%emt 0:08:30]} 22. fxe5 {[%emt 0:02:49]} Qxd1 {[%emt 0:03:30]} 23. Rxd1 {[%emt 0:00:30]} Nd7 {[%emt 0:00:00]} 24. Be3 {[%emt 0:02:45]} Rxa2 {[%emt 0:00:00]} 25. Bc6 {[%emt 0:00:48]} Nxe5 {[%emt 0:00:30]} 26. Bg2 {[%emt 0:00:49]} Nxc4 {[%emt 0:03:30]} 27. bxc4 {[%emt 0:00:04]} Bf5 {[%emt 0:04:30]} 28. Bxc5 {[%emt 0:00:48]} Bxb1 {[%emt 0:00:30]} 29. Bxf8 {[%emt 0:00:33]} Rxg2+ {[%emt 0:03:30]} 30. Kxg2 {[%emt 0:00:32]} Be4+ {[%emt 0:00:00]} 31. Kf2 {[%emt 0:00:16]} Kxf8 {[%emt 0:00:00]} 32. Ke3 {[%emt 0:00:40]} Bc2 {[%emt 0:00:30]} 33. Rd8+ {[%emt 0:00:48]} Ke7 {[%emt 0:00:00]} 34. Rb8 {[%emt 0:00:00]} Bc3 {[%emt 0:00:00]} 35. c5 {[%emt 0:00:39]} Kd7 {[%emt 0:00:30]} 0-1